[Event "Titled Tuesday Blitz February 07 Late 2023"]
[White "Koutlas, Nikolaos"]
[Black "Vaglio Munoz, Jaime"]
[WhiteFideId "25827138"]
[BlackFideId "6500145"]
[WhiteElo "2341"]
[BlackElo "2174"]
[Result "1-0"]
[Round "02"]
[TimeControl "180+2"]
[Date "2023.02.07"]
[WhiteClock "0:00:10"]
[BlackClock "0:00:19"]

1. Nf3 {[%clk 0:01:40]}  d6 {[%clk 0:02:57]} 2. g3 {[%clk 0:01:40]}  e5 {[%clk 0:02:57]} 3. Bg2 {[%clk 0:01:41]}  Bd7 {[%clk 0:02:54]} 4. d3 {[%clk 0:01:41]}  Bc6 {[%clk 0:02:55]} 5. O-O {[%clk 0:01:40]}  g6 {[%clk 0:02:52]} 6. c4 {[%clk 0:01:40]}  Bg7 {[%clk 0:02:52]} 7. Nc3 {[%clk 0:01:41]}  f5 {[%clk 0:02:52]} 8. Rb1 {[%clk 0:01:41]}  a5 {[%clk 0:02:51]} 9. a3 {[%clk 0:01:41]}  Nf6 {[%clk 0:02:51]} 10. b4 {[%clk 0:01:40]}  b6 {[%clk 0:02:51]} 11. b5 {[%clk 0:01:33]}  Bb7 {[%clk 0:02:48]} 12. Ng5 {[%clk 0:01:33]}  Bxg2 {[%clk 0:02:48]} 13. Ne6 {[%clk 0:01:32]}  Qe7 {[%clk 0:02:46]} 14. Nxg7+ {[%clk 0:01:31]}  Qxg7 {[%clk 0:02:45]} 15. Kxg2 {[%clk 0:01:32]}  O-O {[%clk 0:02:43]} 16. h3 {[%clk 0:01:26]}  Nbd7 {[%clk 0:02:43]} 17. e3 {[%clk 0:01:23]}  Rae8 {[%clk 0:02:43]} 18. Bb2 {[%clk 0:01:21]}  h5 {[%clk 0:02:36]} 19. Rc1 {[%clk 0:01:17]}  Kh7 {[%clk 0:02:35]} 20. Nd5 {[%clk 0:01:17]}  Nc5 {[%clk 0:02:31]} 21. d4 {[%clk 0:01:14]}  Nce4 {[%clk 0:02:28]} 22. dxe5 {[%clk 0:01:06]}  dxe5 {[%clk 0:02:07]} 23. Nxf6+ {[%clk 0:01:01]}  Qxf6 {[%clk 0:02:02]} 24. Qe2 {[%clk 0:01:01]}  Nc5 {[%clk 0:02:00]} 25. Rfd1 {[%clk 0:00:59]}  Qe6 {[%clk 0:02:00]} 26. Rd5 {[%clk 0:00:58]}  Rf7 {[%clk 0:01:52]} 27. Rxe5 {[%clk 0:00:57]}  Qd7 {[%clk 0:01:49]} 28. Rd1 {[%clk 0:00:56]}  Qc8 {[%clk 0:01:46]} 29. Rxe8 {[%clk 0:00:54]}  Qxe8 {[%clk 0:01:47]} 30. Qf3 {[%clk 0:00:51]}  Ne4 {[%clk 0:01:44]} 31. Qf4 {[%clk 0:00:49]}  Qe6 {[%clk 0:01:42]} 32. Rd8 {[%clk 0:00:48]}  g5 {[%clk 0:01:40]} 33. Qf3 {[%clk 0:00:41]}  g4 {[%clk 0:01:18]} 34. Rh8+ {[%clk 0:00:39]}  Kg6 {[%clk 0:01:16]} 35. Qf4 {[%clk 0:00:40]}  Rh7 {[%clk 0:01:11]} 36. Rxh7 {[%clk 0:00:35]}  Kxh7 {[%clk 0:01:10]} 37. hxg4 {[%clk 0:00:35]}  hxg4 {[%clk 0:01:04]} 38. Qxc7+ {[%clk 0:00:35]}  Kh6 {[%clk 0:00:59]} 39. Qg7+ {[%clk 0:00:29]}  Kh5 {[%clk 0:00:58]} 40. Qe5 {[%clk 0:00:26]}  Qd7 {[%clk 0:00:50]} 41. Bd4 {[%clk 0:00:24]}  Ng5 {[%clk 0:00:47]} 42. Qh8+ {[%clk 0:00:21]}  Kg6 {[%clk 0:00:46]} 43. Qg8+ {[%clk 0:00:21]}  Kh5 {[%clk 0:00:44]} 44. Qd5 {[%clk 0:00:17]}  Qc8 {[%clk 0:00:38]} 45. Bxb6 {[%clk 0:00:16]}  Qe8 {[%clk 0:00:28]} 46. Bd4 {[%clk 0:00:15]}  Kg6 {[%clk 0:00:25]} 47. b6 {[%clk 0:00:15]}  Ne4 {[%clk 0:00:23]} 48. b7 {[%clk 0:00:14]}  Qb8 {[%clk 0:00:22]} 49. Qe6+ {[%clk 0:00:13]}  Kg5 {[%clk 0:00:19]} 50. Be5 {[%clk 0:00:09]}  Qxb7 {[%clk 0:00:19]} 51. Bf4+ {[%clk 0:00:09]}  Kh5 {[%clk 0:00:19]} 52. Qh6# {[%clk 0:00:10]} 1-0


[Site "https://www.chess.com"]

[Event "Titled Tuesday Blitz February 07 Late 2023"]
[White "Seletsky, Grigory"]
[Black "Stolz, Mike"]
[WhiteFideId "14112191"]
[BlackFideId "4617134"]
[WhiteElo "2259"]
[BlackElo "2330"]
[Result "1-0"]
[Round "02"]
[TimeControl "180+2"]
[Date "2023.02.07"]
[WhiteClock "0:01:20"]
[BlackClock "0:00:25"]

1. e4 {[%clk 0:02:56]}  c5 {[%clk 0:02:59]} 2. Nf3 {[%clk 0:02:55]}  e6 {[%clk 0:02:59]} 3. d3 {[%clk 0:02:54]}  Nc6 {[%clk 0:02:57]} 4. Nbd2 {[%clk 0:02:54]}  a6 {[%clk 0:02:54]} 5. g3 {[%clk 0:02:55]}  b5 {[%clk 0:02:54]} 6. Bg2 {[%clk 0:02:55]}  Bb7 {[%clk 0:02:55]} 7. O-O {[%clk 0:02:55]}  Nf6 {[%clk 0:02:52]} 8. Re1 {[%clk 0:02:56]}  d6 {[%clk 0:02:52]} 9. c3 {[%clk 0:02:56]}  Be7 {[%clk 0:02:42]} 10. d4 {[%clk 0:02:56]}  O-O {[%clk 0:02:41]} 11. Qe2 {[%clk 0:02:45]}  e5 {[%clk 0:02:28]} 12. d5 {[%clk 0:02:43]}  Nb8 {[%clk 0:02:28]} 13. c4 {[%clk 0:02:43]}  b4 {[%clk 0:02:27]} 14. a4 {[%clk 0:02:42]}  Nfd7 {[%clk 0:02:23]} 15. b3 {[%clk 0:02:41]}  f5 {[%clk 0:02:23]} 16. exf5 {[%clk 0:02:40]}  Rxf5 {[%clk 0:02:23]} 17. Ne4 {[%clk 0:02:40]}  Rf8 {[%clk 0:02:23]} 18. Neg5 {[%clk 0:02:32]}  Bxg5 {[%clk 0:02:08]} 19. Nxg5 {[%clk 0:02:32]}  Qf6 {[%clk 0:01:51]} 20. Be4 {[%clk 0:02:24]}  h6 {[%clk 0:01:38]} 21. Nh7 {[%clk 0:02:22]}  Qf7 {[%clk 0:01:33]} 22. Nxf8 {[%clk 0:02:21]}  Qxf8 {[%clk 0:01:34]} 23. f4 {[%clk 0:02:20]}  a5 {[%clk 0:01:25]} 24. Rf1 {[%clk 0:02:19]}  Qe7 {[%clk 0:01:21]} 25. Bb2 {[%clk 0:02:18]}  Na6 {[%clk 0:01:08]} 26. Rae1 {[%clk 0:02:14]}  Re8 {[%clk 0:01:08]} 27. Bf5 {[%clk 0:02:11]}  Nab8 {[%clk 0:01:00]} 28. Be6+ {[%clk 0:02:08]}  Kh8 {[%clk 0:00:59]} 29. f5 {[%clk 0:02:08]}  Nf6 {[%clk 0:00:58]} 30. g4 {[%clk 0:02:04]}  Nh7 {[%clk 0:00:57]} 31. Bc1 {[%clk 0:02:01]}  Qh4 {[%clk 0:00:56]} 32. Kg2 {[%clk 0:01:50]}  Na6 {[%clk 0:00:52]} 33. Qf3 {[%clk 0:01:45]}  Nc7 {[%clk 0:00:49]} 34. Qg3 {[%clk 0:01:41]}  Qf6 {[%clk 0:00:41]} 35. Kg1 {[%clk 0:01:40]}  Ng5 {[%clk 0:00:30]} 36. h4 {[%clk 0:01:39]}  Ngxe6 {[%clk 0:00:28]} 37. fxe6 {[%clk 0:01:39]}  Qe7 {[%clk 0:00:28]} 38. g5 {[%clk 0:01:22]}  h5 {[%clk 0:00:25]} 39. Rf7 {[%clk 0:01:20]} 1-0


[Site "https://www.chess.com"]

[Event "Titled Tuesday Blitz February 07 Late 2023"]
[White "Vovk, Orest"]
[Black "Djabri,Massinas"]
[WhiteFideId "14113490"]
[BlackFideId "7905726"]
[WhiteElo "2315"]
[BlackElo "2231"]
[Result "1-0"]
[Round "02"]
[TimeControl "180+2"]
[Date "2023.02.07"]
[WhiteClock "0:00:14"]
[BlackClock "0:00:02"]

1. h4 {[%clk 0:02:42]}  e5 {[%clk 0:02:59]} 2. h5 {[%clk 0:02:41]}  d5 {[%clk 0:02:54]} 3. h6 {[%clk 0:02:42]}  Nxh6 {[%clk 0:02:53]} 4. d4 {[%clk 0:02:40]}  Nc6 {[%clk 0:02:42]} 5. Bxh6 {[%clk 0:02:35]}  gxh6 {[%clk 0:02:42]} 6. dxe5 {[%clk 0:02:35]}  Nxe5 {[%clk 0:02:42]} 7. Nf3 {[%clk 0:02:35]}  Nxf3+ {[%clk 0:02:39]} 8. gxf3 {[%clk 0:02:35]}  Bg7 {[%clk 0:02:39]} 9. c3 {[%clk 0:02:35]}  d4 {[%clk 0:02:38]} 10. Bh3 {[%clk 0:02:29]}  Bxh3 {[%clk 0:02:18]} 11. Rxh3 {[%clk 0:02:19]}  Qd7 {[%clk 0:02:15]} 12. Rg3 {[%clk 0:02:14]}  Bf6 {[%clk 0:02:15]} 13. cxd4 {[%clk 0:02:05]}  O-O-O {[%clk 0:02:10]} 14. e3 {[%clk 0:01:59]}  Rhe8 {[%clk 0:02:04]} 15. Kf1 {[%clk 0:01:58]}  h5 {[%clk 0:02:04]} 16. Nc3 {[%clk 0:01:55]}  h4 {[%clk 0:01:57]} 17. Rg4 {[%clk 0:01:54]}  h5 {[%clk 0:01:56]} 18. Re4 {[%clk 0:01:44]}  h3 {[%clk 0:01:36]} 19. Rxe8 {[%clk 0:01:40]}  Rxe8 {[%clk 0:01:37]} 20. Ne4 {[%clk 0:01:39]}  Be7 {[%clk 0:01:23]} 21. Qb3 {[%clk 0:01:31]}  h2 {[%clk 0:01:18]} 22. Ke2 {[%clk 0:01:23]}  f5 {[%clk 0:01:16]} 23. Nc3 {[%clk 0:01:13]}  f4 {[%clk 0:00:54]} 24. Qd5 {[%clk 0:00:52]}  fxe3 {[%clk 0:00:43]} 25. Qxd7+ {[%clk 0:00:49]}  Kxd7 {[%clk 0:00:44]} 26. fxe3 {[%clk 0:00:50]}  Rg8 {[%clk 0:00:44]} 27. Rh1 {[%clk 0:00:38]}  Rg2+ {[%clk 0:00:43]} 28. Kd3 {[%clk 0:00:38]}  Bh4 {[%clk 0:00:43]} 29. Ne2 {[%clk 0:00:31]}  Bf2 {[%clk 0:00:37]} 30. Nf4 {[%clk 0:00:29]}  Rg1 {[%clk 0:00:20]} 31. Rxh2 {[%clk 0:00:29]}  Bg3 {[%clk 0:00:20]} 32. Rxh5 {[%clk 0:00:25]}  Bxf4 {[%clk 0:00:20]} 33. exf4 {[%clk 0:00:26]}  Rb1 {[%clk 0:00:20]} 34. Rh2 {[%clk 0:00:24]}  Ke6 {[%clk 0:00:17]} 35. Re2+ {[%clk 0:00:23]}  Kf5 {[%clk 0:00:16]} 36. Kc2 {[%clk 0:00:23]}  Ra1 {[%clk 0:00:16]} 37. a3 {[%clk 0:00:20]}  Kxf4 {[%clk 0:00:15]} 38. Re7 {[%clk 0:00:20]}  Kxf3 {[%clk 0:00:14]} 39. Rxc7 {[%clk 0:00:20]}  b5 {[%clk 0:00:14]} 40. Rxa7 {[%clk 0:00:20]}  b4 {[%clk 0:00:15]} 41. a4 {[%clk 0:00:18]}  Ke4 {[%clk 0:00:14]} 42. Kb3 {[%clk 0:00:18]}  Kxd4 {[%clk 0:00:10]} 43. Kxb4 {[%clk 0:00:18]}  Kd5 {[%clk 0:00:10]} 44. Kb5 {[%clk 0:00:18]}  Kd6 {[%clk 0:00:11]} 45. b4 {[%clk 0:00:19]}  Rh1 {[%clk 0:00:09]} 46. a5 {[%clk 0:00:18]}  Rh5+ {[%clk 0:00:08]} 47. Ka4 {[%clk 0:00:18]}  Kc6 {[%clk 0:00:08]} 48. Ra6+ {[%clk 0:00:18]}  Kc7 {[%clk 0:00:06]} 49. Rg6 {[%clk 0:00:19]}  Kb7 {[%clk 0:00:06]} 50. Rg7+ {[%clk 0:00:15]}  Kc6 {[%clk 0:00:04]} 51. b5+ {[%clk 0:00:14]}  Kc5 {[%clk 0:00:04]} 52. Rc7+ {[%clk 0:00:14]}  Kd6 {[%clk 0:00:03]} 53. Rc6+ {[%clk 0:00:13]}  Kd5 {[%clk 0:00:03]} 54. a6 {[%clk 0:00:13]}  Rh1 {[%clk 0:00:02]} 55. Ka5 {[%clk 0:00:13]}  Ra1+ {[%clk 0:00:02]} 56. Kb6 {[%clk 0:00:14]} 1-0


[Site "https://www.chess.com"]

[Event "Titled Tuesday Blitz February 07 Late 2023"]
[White "Papayan, Oleg"]
[Black "Ferriz Barrios, Andres"]
[WhiteFideId "4193911"]
[BlackFideId "5104467"]
[WhiteElo "2253"]
[BlackElo "2102"]
[Result "1-0"]
[Round "02"]
[TimeControl "180+2"]
[Date "2023.02.07"]
[WhiteClock "0:00:21"]
[BlackClock "0:01:37"]

1. d4 {[%clk 0:03:00]}  Nf6 {[%clk 0:02:52]} 2. Nf3 {[%clk 0:03:00]}  d5 {[%clk 0:02:49]} 3. Bf4 {[%clk 0:02:59]}  Nbd7 {[%clk 0:02:49]} 4. c3 {[%clk 0:02:57]}  c6 {[%clk 0:02:49]} 5. h3 {[%clk 0:02:56]}  e6 {[%clk 0:02:50]} 6. e3 {[%clk 0:02:56]}  Be7 {[%clk 0:02:51]} 7. Bd3 {[%clk 0:02:56]}  Nf8 {[%clk 0:02:51]} 8. Nbd2 {[%clk 0:02:53]}  Ng6 {[%clk 0:02:52]} 9. Bh2 {[%clk 0:02:52]}  Bd6 {[%clk 0:02:52]} 10. Ne5 {[%clk 0:02:48]}  Qc7 {[%clk 0:02:43]} 11. f4 {[%clk 0:02:45]}  b6 {[%clk 0:02:41]} 12. O-O {[%clk 0:02:44]}  Bb7 {[%clk 0:02:41]} 13. Qe2 {[%clk 0:02:39]}  O-O {[%clk 0:02:35]} 14. g4 {[%clk 0:02:31]}  c5 {[%clk 0:02:34]} 15. g5 {[%clk 0:02:16]}  Ne4 {[%clk 0:02:33]} 16. Ndf3 {[%clk 0:01:54]}  f5 {[%clk 0:02:29]} 17. h4 {[%clk 0:01:33]}  a5 {[%clk 0:02:24]} 18. a4 {[%clk 0:01:33]}  c4 {[%clk 0:02:19]} 19. Bc2 {[%clk 0:01:25]}  Nxe5 {[%clk 0:02:18]} 20. fxe5 {[%clk 0:01:16]}  Be7 {[%clk 0:02:16]} 21. Bf4 {[%clk 0:01:05]}  Bc6 {[%clk 0:02:06]} 22. Ra2 {[%clk 0:01:01]}  b5 {[%clk 0:02:02]} 23. axb5 {[%clk 0:01:02]}  Bxb5 {[%clk 0:02:03]} 24. Rfa1 {[%clk 0:01:02]}  a4 {[%clk 0:02:03]} 25. Bxa4 {[%clk 0:00:59]}  Bc6 {[%clk 0:01:57]} 26. Bxc6 {[%clk 0:00:53]}  Qxc6 {[%clk 0:01:58]} 27. Qc2 {[%clk 0:00:45]}  Rxa2 {[%clk 0:01:54]} 28. Rxa2 {[%clk 0:00:45]}  Ra8 {[%clk 0:01:55]} 29. Qb1 {[%clk 0:00:44]}  Rb8 {[%clk 0:01:53]} 30. Qc2 {[%clk 0:00:30]}  Kf7 {[%clk 0:01:49]} 31. Nd2 {[%clk 0:00:30]}  h6 {[%clk 0:01:46]} 32. Nxe4 {[%clk 0:00:30]}  dxe4 {[%clk 0:01:47]} 33. Kg2 {[%clk 0:00:26]}  hxg5 {[%clk 0:01:47]} 34. hxg5 {[%clk 0:00:27]}  Qc7 {[%clk 0:01:42]} 35. Qe2 {[%clk 0:00:22]}  Rb6 {[%clk 0:01:38]} 36. Qh5+ {[%clk 0:00:21]}  Kg8 {[%clk 0:01:37]} 37. g6 {[%clk 0:00:21]} 1-0


[Site "https://www.chess.com"]

[Event "Titled Tuesday Blitz February 07 Late 2023"]
[White "Fiorito, Francisco"]
[Black "Ward, Ieuan C"]
[WhiteFideId "180165"]
[BlackFideId "406627"]
[WhiteElo "2305"]
[BlackElo "2028"]
[Result "1-0"]
[Round "02"]
[TimeControl "180+2"]
[Date "2023.02.07"]
[WhiteClock "0:00:40"]
[BlackClock "0:00:28"]

1. d4 {[%clk 0:03:00]}  e5 {[%clk 0:02:40]} 2. d5 {[%clk 0:02:58]}  Bc5 {[%clk 0:02:39]} 3. Nc3 {[%clk 0:02:54]}  a6 {[%clk 0:02:38]} 4. a4 {[%clk 0:02:53]}  d6 {[%clk 0:02:37]} 5. e4 {[%clk 0:02:53]}  Ne7 {[%clk 0:02:36]} 6. Nf3 {[%clk 0:02:49]}  O-O {[%clk 0:02:35]} 7. Bd3 {[%clk 0:02:48]}  f5 {[%clk 0:02:34]} 8. exf5 {[%clk 0:02:49]}  Bxf5 {[%clk 0:02:34]} 9. Bg5 {[%clk 0:02:46]}  h6 {[%clk 0:02:31]} 10. Bh4 {[%clk 0:02:41]}  g5 {[%clk 0:02:29]} 11. Bg3 {[%clk 0:02:41]}  Nd7 {[%clk 0:02:23]} 12. Qe2 {[%clk 0:02:40]}  Qe8 {[%clk 0:02:21]} 13. h4 {[%clk 0:02:33]}  g4 {[%clk 0:02:20]} 14. Nd2 {[%clk 0:02:33]}  h5 {[%clk 0:02:17]} 15. Nde4 {[%clk 0:02:32]}  Bb4 {[%clk 0:02:13]} 16. O-O {[%clk 0:02:29]}  Qg6 {[%clk 0:02:10]} 17. Rad1 {[%clk 0:02:26]}  Nc5 {[%clk 0:02:07]} 18. Nxc5 {[%clk 0:02:24]}  Bxc5 {[%clk 0:02:05]} 19. Ne4 {[%clk 0:02:22]}  Bb6 {[%clk 0:02:02]} 20. c4 {[%clk 0:02:22]}  a5 {[%clk 0:01:52]} 21. Kh2 {[%clk 0:01:53]}  Bd4 {[%clk 0:01:50]} 22. b3 {[%clk 0:01:51]}  Rad8 {[%clk 0:01:41]} 23. Ng5 {[%clk 0:01:46]}  Rc8 {[%clk 0:01:30]} 24. Ne6 {[%clk 0:01:45]}  Rf7 {[%clk 0:01:22]} 25. Rfe1 {[%clk 0:00:55]}  Bc3 {[%clk 0:01:19]} 26. Rf1 {[%clk 0:00:55]}  c6 {[%clk 0:01:16]} 27. Ng5 {[%clk 0:00:51]}  Rf6 {[%clk 0:01:10]} 28. dxc6 {[%clk 0:00:51]}  Nxc6 {[%clk 0:01:05]} 29. Bxf5 {[%clk 0:00:49]}  Qxf5 {[%clk 0:01:01]} 30. c5 {[%clk 0:00:48]}  Nd4 {[%clk 0:00:52]} 31. Qc4+ {[%clk 0:00:48]}  Ne6 {[%clk 0:00:43]} 32. Nxe6 {[%clk 0:00:44]}  Qxe6 {[%clk 0:00:43]} 33. Qxc3 {[%clk 0:00:44]}  Rxc5 {[%clk 0:00:43]} 34. Qe3 {[%clk 0:00:45]}  Rf7 {[%clk 0:00:37]} 35. Rd2 {[%clk 0:00:42]}  Rfc7 {[%clk 0:00:36]} 36. Rfd1 {[%clk 0:00:42]}  Rc3 {[%clk 0:00:33]} 37. Qg5+ {[%clk 0:00:41]}  Rg7 {[%clk 0:00:33]} 38. Qxh5 {[%clk 0:00:41]}  Qxb3 {[%clk 0:00:28]} 39. Rxd6 {[%clk 0:00:40]}  Rc8 {[%clk 0:00:28]} 40. Rd8+ {[%clk 0:00:40]} 1-0


[Site "https://www.chess.com"]

[Event "Titled Tuesday Blitz February 07 Late 2023"]
[White "Danielyan, Vahe"]
[Black "Ardila, Oscar Humberto"]
[WhiteFideId "13304828"]
[BlackFideId "4404742"]
[WhiteElo "2346"]
[BlackElo "1982"]
[Result "1-0"]
[Round "02"]
[TimeControl "180+2"]
[Date "2023.02.07"]
[WhiteClock "0:00:09"]
[BlackClock "0:00:06"]

1. e4 {[%clk 0:03:00]}  g6 {[%clk 0:03:00]} 2. d4 {[%clk 0:02:59]}  Bg7 {[%clk 0:02:59]} 3. Nc3 {[%clk 0:02:59]}  d6 {[%clk 0:02:58]} 4. Be3 {[%clk 0:02:59]}  Nd7 {[%clk 0:02:57]} 5. Qd2 {[%clk 0:02:58]}  e5 {[%clk 0:02:55]} 6. Nge2 {[%clk 0:02:52]}  h6 {[%clk 0:02:53]} 7. O-O-O {[%clk 0:02:50]}  Ngf6 {[%clk 0:02:53]} 8. f3 {[%clk 0:02:48]}  h5 {[%clk 0:02:28]} 9. h4 {[%clk 0:02:46]}  O-O {[%clk 0:02:27]} 10. Bh6 {[%clk 0:02:36]}  exd4 {[%clk 0:02:12]} 11. Bxg7 {[%clk 0:02:21]}  Kxg7 {[%clk 0:02:11]} 12. Nxd4 {[%clk 0:02:16]}  Ne5 {[%clk 0:02:09]} 13. Be2 {[%clk 0:02:13]}  Qe7 {[%clk 0:02:03]} 14. Qg5 {[%clk 0:01:44]}  Re8 {[%clk 0:01:55]} 15. g4 {[%clk 0:01:36]}  hxg4 {[%clk 0:01:43]} 16. f4 {[%clk 0:01:33]}  Nc6 {[%clk 0:01:37]} 17. h5 {[%clk 0:01:30]}  Nxe4 {[%clk 0:01:30]} 18. Nxe4 {[%clk 0:01:19]}  Qxg5 {[%clk 0:01:25]} 19. Nxg5 {[%clk 0:01:09]}  Nxd4 {[%clk 0:01:25]} 20. h6+ {[%clk 0:01:10]}  Kf6 {[%clk 0:00:57]} 21. Rxd4 {[%clk 0:01:04]}  Rh8 {[%clk 0:00:55]} 22. Bc4 {[%clk 0:01:00]}  Be6 {[%clk 0:00:51]} 23. Bxe6 {[%clk 0:00:53]}  fxe6 {[%clk 0:00:51]} 24. Re4 {[%clk 0:00:51]}  Rae8 {[%clk 0:00:50]} 25. h7 {[%clk 0:00:42]}  e5 {[%clk 0:00:44]} 26. Rhe1 {[%clk 0:00:40]}  Kf5 {[%clk 0:00:40]} 27. Kd2 {[%clk 0:00:25]}  g3 {[%clk 0:00:33]} 28. Nf3 {[%clk 0:00:24]}  Rxh7 {[%clk 0:00:26]} 29. fxe5 {[%clk 0:00:24]}  dxe5 {[%clk 0:00:23]} 30. Ke3 {[%clk 0:00:16]}  g2 {[%clk 0:00:22]} 31. Rg1 {[%clk 0:00:16]}  Rh3 {[%clk 0:00:19]} 32. Rxg2 {[%clk 0:00:16]}  c6 {[%clk 0:00:18]} 33. Rg5+ {[%clk 0:00:16]}  Kf6 {[%clk 0:00:18]} 34. Rg2 {[%clk 0:00:08]}  b5 {[%clk 0:00:18]} 35. c3 {[%clk 0:00:08]}  c5 {[%clk 0:00:17]} 36. a3 {[%clk 0:00:08]}  c4 {[%clk 0:00:18]} 37. Rg1 {[%clk 0:00:07]}  Rd8 {[%clk 0:00:17]} 38. Rf1 {[%clk 0:00:04]}  Rd3+ {[%clk 0:00:17]} 39. Ke2 {[%clk 0:00:04]}  Kg7 {[%clk 0:00:15]} 40. Rxe5 {[%clk 0:00:04]}  g5 {[%clk 0:00:14]} 41. Re7+ {[%clk 0:00:04]}  Kg8 {[%clk 0:00:13]} 42. Re8+ {[%clk 0:00:04]}  Kf7 {[%clk 0:00:13]} 43. Re4 {[%clk 0:00:04]}  Kg6 {[%clk 0:00:13]} 44. Ne5+ {[%clk 0:00:05]}  Kh5 {[%clk 0:00:13]} 45. Nxd3 {[%clk 0:00:05]}  cxd3+ {[%clk 0:00:14]} 46. Kd2 {[%clk 0:00:06]}  Rh2+ {[%clk 0:00:14]} 47. Kxd3 {[%clk 0:00:06]}  Rxb2 {[%clk 0:00:15]} 48. Re5 {[%clk 0:00:06]}  Rb3 {[%clk 0:00:15]} 49. Rg1 {[%clk 0:00:06]}  Rxa3 {[%clk 0:00:14]} 50. Rgxg5+ {[%clk 0:00:06]}  Kh4 {[%clk 0:00:15]} 51. Rxb5 {[%clk 0:00:07]}  a6 {[%clk 0:00:14]} 52. Ra5 {[%clk 0:00:08]}  Rb3 {[%clk 0:00:13]} 53. Rh5+ {[%clk 0:00:07]}  Kg4 {[%clk 0:00:12]} 54. Rhc5 {[%clk 0:00:08]}  Rb6 {[%clk 0:00:11]} 55. Rc4+ {[%clk 0:00:09]}  Kf3 {[%clk 0:00:11]} 56. Rf5+ {[%clk 0:00:08]}  Kg3 {[%clk 0:00:10]} 57. Rd5 {[%clk 0:00:06]}  Kf3 {[%clk 0:00:10]} 58. Ra4 {[%clk 0:00:05]}  Rh6 {[%clk 0:00:09]} 59. Rda5 {[%clk 0:00:06]}  Rh1 {[%clk 0:00:08]} 60. Rxa6 {[%clk 0:00:06]}  Rd1+ {[%clk 0:00:08]} 61. Kc4 {[%clk 0:00:06]}  Ke4 {[%clk 0:00:08]} 62. Re6+ {[%clk 0:00:07]}  Kf5 {[%clk 0:00:08]} 63. Raa6 {[%clk 0:00:07]}  Rd8 {[%clk 0:00:06]} 64. Rf6+ {[%clk 0:00:08]}  Ke5 {[%clk 0:00:06]} 65. Rae6# {[%clk 0:00:09]} 1-0


[Site "https://www.chess.com"]

[Event "Titled Tuesday Blitz February 07 Late 2023"]
[White "Smith, Garrett L"]
[Black "Roux, Baptiste"]
[WhiteFideId "2024829"]
[BlackFideId "36017450"]
[WhiteElo "2047"]
[BlackElo "2300"]
[Result "0-1"]
[Round "02"]
[TimeControl "180+2"]
[Date "2023.02.07"]
[WhiteClock "0:00:15"]
[BlackClock "0:00:21"]

1. e4 {[%clk 0:03:00]}  e5 {[%clk 0:02:58]} 2. Nf3 {[%clk 0:03:00]}  d6 {[%clk 0:02:52]} 3. d4 {[%clk 0:02:59]}  exd4 {[%clk 0:02:52]} 4. Nxd4 {[%clk 0:02:59]}  Nf6 {[%clk 0:02:50]} 5. Nc3 {[%clk 0:02:59]}  Bd7 {[%clk 0:02:50]} 6. h3 {[%clk 0:02:59]}  Nc6 {[%clk 0:02:50]} 7. g4 {[%clk 0:02:58]}  Nxd4 {[%clk 0:02:45]} 8. Qxd4 {[%clk 0:02:57]}  Bc6 {[%clk 0:02:46]} 9. Bg2 {[%clk 0:02:47]}  Nd7 {[%clk 0:02:32]} 10. Bf4 {[%clk 0:02:33]}  Qf6 {[%clk 0:02:27]} 11. Qe3 {[%clk 0:02:28]}  Be7 {[%clk 0:02:18]} 12. O-O-O {[%clk 0:02:27]}  h6 {[%clk 0:01:42]} 13. h4 {[%clk 0:02:17]}  Nb6 {[%clk 0:01:26]} 14. g5 {[%clk 0:01:58]}  Qe6 {[%clk 0:01:25]} 15. Bh3 {[%clk 0:01:55]}  Qc4 {[%clk 0:01:25]} 16. gxh6 {[%clk 0:01:41]}  gxh6 {[%clk 0:01:21]} 17. Rd4 {[%clk 0:01:27]}  Qc5 {[%clk 0:01:18]} 18. Bf5 {[%clk 0:01:10]}  Nd7 {[%clk 0:00:57]} 19. b4 {[%clk 0:01:05]}  Qb6 {[%clk 0:00:51]} 20. a4 {[%clk 0:00:57]}  a6 {[%clk 0:00:40]} 21. Rg1 {[%clk 0:00:46]}  O-O-O {[%clk 0:00:39]} 22. Kd2 {[%clk 0:00:34]}  Bf6 {[%clk 0:00:36]} 23. Rc4 {[%clk 0:00:35]}  Qxe3+ {[%clk 0:00:34]} 24. Bxe3 {[%clk 0:00:31]}  Kb8 {[%clk 0:00:30]} 25. b5 {[%clk 0:00:29]}  Ne5 {[%clk 0:00:24]} 26. Rxc6 {[%clk 0:00:20]}  bxc6 {[%clk 0:00:21]} 27. Ke2 {[%clk 0:00:20]}  cxb5 {[%clk 0:00:19]} 28. axb5 {[%clk 0:00:20]}  axb5 {[%clk 0:00:20]} 29. Rb1 {[%clk 0:00:20]}  c6 {[%clk 0:00:20]} 30. f4 {[%clk 0:00:16]}  Nc4 {[%clk 0:00:21]} 31. Nxb5 {[%clk 0:00:14]}  cxb5 {[%clk 0:00:20]} 32. Rxb5+ {[%clk 0:00:15]}  Kc7 {[%clk 0:00:21]} 0-1


[Site "https://www.chess.com"]

[Event "Titled Tuesday Blitz February 07 Late 2023"]
[White "Van Meegen, Ruud"]
[Black "Iljin, Timofey"]
[WhiteFideId "1034995"]
[BlackFideId "14110180"]
[WhiteElo "2311"]
[BlackElo "2329"]
[Result "0-1"]
[Round "02"]
[TimeControl "180+2"]
[Date "2023.02.07"]
[WhiteClock "0:01:50"]
[BlackClock "0:02:53"]

1. Nf3 {[%clk 0:02:42]}  d5 {[%clk 0:03:00]} 2. g3 {[%clk 0:02:39]}  c5 {[%clk 0:03:00]} 3. Bg2 {[%clk 0:02:39]}  Nf6 {[%clk 0:03:01]} 4. O-O {[%clk 0:02:36]}  h6 {[%clk 0:03:01]} 5. c4 {[%clk 0:02:32]}  d4 {[%clk 0:03:00]} 6. e3 {[%clk 0:02:31]}  Nc6 {[%clk 0:03:00]} 7. exd4 {[%clk 0:02:29]}  cxd4 {[%clk 0:03:01]} 8. d3 {[%clk 0:02:24]}  g6 {[%clk 0:02:59]} 9. Bf4 {[%clk 0:02:22]}  Bg7 {[%clk 0:02:58]} 10. Re1 {[%clk 0:02:21]}  O-O {[%clk 0:02:58]} 11. Nbd2 {[%clk 0:02:21]}  Nd7 {[%clk 0:02:57]} 12. Ne4 {[%clk 0:02:12]}  f5 {[%clk 0:02:57]} 13. Ned2 {[%clk 0:01:53]}  e5 {[%clk 0:02:53]} 14. Nxe5 {[%clk 0:01:50]}  Ndxe5 {[%clk 0:02:53]} 0-1


[Site "https://www.chess.com"]

[Event "Titled Tuesday Blitz February 07 Late 2023"]
[White "Baches Garcia, Guillermo"]
[Black "ritanovikova"]
[WhiteFideId "2209764"]
[WhiteElo "2327"]
[BlackElo "2226"]
[Result "1-0"]
[Round "02"]
[TimeControl "180+2"]
[Date "2023.02.07"]
[WhiteClock "0:01:49"]
[BlackClock "0:01:04"]

1. e4 {[%clk 0:03:00]}  e5 {[%clk 0:03:00]} 2. Nf3 {[%clk 0:03:00]}  Nc6 {[%clk 0:03:00]} 3. Nc3 {[%clk 0:03:01]}  Nf6 {[%clk 0:03:00]} 4. d4 {[%clk 0:03:01]}  exd4 {[%clk 0:02:56]} 5. Nxd4 {[%clk 0:03:02]}  d5 {[%clk 0:02:52]} 6. Bb5 {[%clk 0:02:58]}  Bd7 {[%clk 0:02:46]} 7. exd5 {[%clk 0:02:55]}  Nxd4 {[%clk 0:02:36]} 8. Qxd4 {[%clk 0:02:51]}  Bxb5 {[%clk 0:02:32]} 9. Nxb5 {[%clk 0:02:51]}  a6 {[%clk 0:01:40]} 10. Qe5+ {[%clk 0:02:47]}  Be7 {[%clk 0:01:32]} 11. Nxc7+ {[%clk 0:02:42]}  Kd7 {[%clk 0:01:23]} 12. Nxa8 {[%clk 0:02:39]}  Qxa8 {[%clk 0:01:23]} 13. Qf5+ {[%clk 0:02:34]}  Kd8 {[%clk 0:01:23]} 14. Be3 {[%clk 0:02:25]}  Qb8 {[%clk 0:01:16]} 15. Bb6+ {[%clk 0:02:09]}  Ke8 {[%clk 0:01:15]} 16. O-O-O {[%clk 0:02:09]}  Nd7 {[%clk 0:01:12]} 17. d6 {[%clk 0:01:59]}  Nxb6 {[%clk 0:01:04]} 18. dxe7 {[%clk 0:01:49]} 1-0


[Site "https://www.chess.com"]